fUST/lending_fUST_20241025
["ID","MTS","AMOUNT","RATE_DAILY","PERIOD"]
[340806628,1729861832507,-189.442021,0.00013567,2]
[340806630,1729861832517,-169.777553,0.00013567,2]
[340806632,1729861832528,-169.777553,0.00013567,2]
[340806635,1729861832548,-235.49041636,0.00013588,2]
[340806637,1729861832560,-222.273,0.0001359,2]
[340806639,1729861832570,-235.49041636,0.00013593,2]
[340806641,1729861832580,-250.0,0.00013594,2]
[340806643,1729861832590,-150.0,0.00013594,2]
[340806645,1729861832600,-166.251,0.00013594,2]
[340806647,1729861832610,-235.49041636,0.00013598,2]
[340806649,1729861832620,-300.0,0.00013672,2]
[340806651,1729861832630,-500.0,0.00013673,2]
[340806653,1729861832640,-500.0,0.00013673,2]
[340806655,1729861832649,-501.42746417,0.00013673,2]
[340806656,1729861832659,-495.8996441,0.00013673,2]
[340806657,1729861832669,-500.0,0.00013673,2]
[340806659,1729861832679,-500.0,0.00013673,2]
[340806661,1729861832690,-189.68148805,0.00013688,2]
[340806662,1729861832700,-91057.6706946,0.00013688,2]
[340806665,1729861832711,-39354.29353447,0.00013688,2]
[340806667,1729861832726,-27234.0,0.00013688,2]
[340806670,1729861832746,-300.8955,0.00013688,2]
[340806820,1729861838724,-876.6658003,0.00013688,2]
[340806821,1729861838737,-635.5939541,0.00013688,2]
[340806827,1729861840665,-20204.89897323,0.00013688,2]
[340806828,1729861840675,-30352.5568982,0.00013689,2]
[340806829,1729861840685,-29535.449254,0.00013689,2]
[340806830,1729861840694,-500.0,0.00013698,2]
[340806831,1729861840704,-554.79115601,0.00013698,2]
[340806832,1729861840713,-500.0,0.00013698,2]
[340806833,1729861840722,-500.0,0.00013698,2]
[340806834,1729861840731,-375.0,0.00013698,2]
[340806835,1729861840741,-500.0,0.00013698,2]
[340806836,1729861840750,-500.0,0.00013698,2]
[340806837,1729861840759,-602.42,0.00013698,2]
[340806838,1729861840769,-523.4,0.00013698,2]
[340806839,1729861840778,-500.0,0.00013698,2]
[340806841,1729861840788,-500.0,0.00013698,2]
[340806843,1729861840798,-530.27,0.00013698,2]
[340806845,1729861840807,-500.0,0.00013698,2]
[340806846,1729861840817,-500.0,0.00013698,2]
[340806847,1729861840826,-500.0,0.00013698,2]
[340806848,1729861840835,-992.56,0.00013698,2]
[340806849,1729861840844,-500.0,0.00013698,2]
[340806850,1729861840853,-500.0,0.00013698,2]
[340806851,1729861840863,-500.0,0.00013698,2]
[340806852,1729861840872,-500.0,0.00013698,2]
[340806853,1729861840881,-500.0,0.00013698,2]
[340806854,1729861840890,-522.86,0.00013698,2]
[340806855,1729861840900,-500.0,0.00013698,2]
[340806856,1729861840909,-500.0,0.00013698,2]
[340806857,1729861840918,-500.0,0.00013698,2]
[340806858,1729861840928,-1167.2,0.00013698,2]
[340806859,1729861840937,-503.82564163,0.00013698,2]
[340806860,1729861840949,-594.86745109,0.00013698,2]
[340806861,1729861840958,-500.0,0.00013698,2]
[340806862,1729861840968,-500.0,0.00013698,2]
[340806863,1729861840977,-500.0,0.00013698,2]
[340806864,1729861840987,-521.24,0.00013698,2]
[340806865,1729861840996,-749.68,0.00013698,2]
[340806866,1729861841006,-500.0,0.00013698,2]
[340806867,1729861841015,-282.95953521,0.00013698,2]
[340806868,1729861841028,-1120.16,0.00013698,2]
[340806869,1729861841039,-500.0,0.00013698,2]
[340806870,1729861841048,-500.0,0.00013698,2]
[340806871,1729861841058,-500.0,0.00013698,2]
[340806872,1729861841067,-500.0,0.00013698,2]
[340806873,1729861841077,-500.0,0.00013698,2]
[340806874,1729861841086,-500.0,0.00013698,2]
[340806875,1729861841095,-500.0,0.00013698,2]
[340806876,1729861841105,-1755.3,0.00013698,2]
[340806877,1729861841115,-500.0,0.00013698,2]
[340806878,1729861841124,-500.0,0.00013698,2]
[340806879,1729861841134,-1055.72,0.00013698,2]
[340806880,1729861841143,-510.66,0.00013698,2]
[340806881,1729861841153,-500.0,0.00013698,2]
[340806882,1729861841163,-545.75,0.00013698,2]
[340806883,1729861841172,-564.0,0.00013698,2]
[340806884,1729861841182,-769.08,0.00013698,2]
[340806885,1729861841191,-593.97,0.00013698,2]
[340806886,1729861841201,-500.0,0.00013698,2]
[340806887,1729861841210,-899.85,0.00013698,2]
[340806888,1729861841220,-500.0,0.00013698,2]
[340806889,1729861841230,-830.01,0.00013698,2]
[340806890,1729861841240,-634.43,0.00013698,2]
[340806891,1729861841250,-500.0,0.00013698,2]
[340806892,1729861841260,-500.0,0.00013698,2]
[340806893,1729861841270,-703.62,0.00013698,2]
[340806894,1729861841280,-1010.29,0.00013698,2]
[340806895,1729861841290,-558.81,0.00013698,2]
[340806896,1729861841300,-1653.61,0.00013698,2]
[340806897,1729861841310,-1995.07,0.00013698,2]
[340806898,1729861841319,-500.0,0.00013698,2]
[340806899,1729861841329,-600.3559158,0.00013698,2]
[340806900,1729861841339,-585.33,0.00013698,2]
[340806901,1729861841348,-1808.93,0.00013698,2]
[340806902,1729861841358,-1025.73,0.00013698,2]
[340806903,1729861841368,-573.81,0.00013698,2]
[340806904,1729861841378,-789.26,0.00013698,2]
[340806905,1729861841387,-500.0,0.00013698,2]
[340806906,1729861841397,-500.0,0.00013698,2]
[340806907,1729861841408,-500.0,0.00013698,2]
[340806908,1729861841417,-756.37,0.00013698,2]
[340806909,1729861841427,-733.87,0.00013698,2]
[340806910,1729861841436,-955.98,0.00013698,2]
[340806911,1729861841446,-969.61,0.00013698,2]
[340806912,1729861841455,-500.0,0.00013698,2]
[340806913,1729861841465,-500.0,0.00013698,2]
[340806914,1729861841474,-500.0,0.00013698,2]
[340806915,1729861841484,-500.0,0.00013698,2]
[340806916,1729861841494,-513.44,0.00013698,2]
[340806917,1729861841504,-1044.93,0.00013698,2]
[340806918,1729861841514,-1062.81,0.00013698,2]
[340806919,1729861841523,-500.0,0.00013698,2]
[340806920,1729861841534,-500.0,0.00013698,2]
[340806921,1729861841544,-789.03,0.00013698,2]
[340806922,1729861841553,-500.0,0.00013698,2]
[340806923,1729861841569,-616.25,0.00013698,2]
[340806924,1729861841583,-769.26,0.00013698,2]
[340806925,1729861841593,-527.22,0.00013698,2]
[340806926,1729861841603,-500.0,0.00013698,2]
[340806927,1729861841612,-550.88,0.00013698,2]
[340806928,1729861841622,-502.38883243,0.00013698,2]
[340806929,1729861841632,-500.0,0.00013698,2]
[340806930,1729861841642,-608.32,0.00013698,2]
[340806931,1729861841652,-500.0,0.00013698,2]
[340806932,1729861841661,-500.0,0.00013698,2]
[340806933,1729861841671,-500.0,0.00013698,2]
[340806934,1729861841681,-719.23,0.00013698,2]
[340806935,1729861841692,-500.0,0.00013698,2]
[340806936,1729861841702,-705.72,0.00013698,2]
[340806937,1729861841712,-996.16,0.00013698,2]
[340806938,1729861841722,-500.0,0.00013698,2]
[340806939,1729861841732,-500.0,0.00013698,2]
[340806940,1729861841742,-640.12,0.00013698,2]
[340806941,1729861841752,-648.11,0.00013698,2]
[340806942,1729861841763,-500.0,0.00013698,2]
[340806943,1729861841772,-500.0,0.00013698,2]
[340806944,1729861841782,-674.71,0.00013698,2]
[340806945,1729861841793,-617.39,0.00013698,2]
[340806946,1729861841803,-851.32,0.00013698,2]
[340806947,1729861841813,-500.0,0.00013698,2]
[340806948,1729861841823,-500.0,0.00013698,2]
[340806949,1729861841833,-716.52,0.00013698,2]
[340806950,1729861841843,-1742.01,0.00013698,2]
[340806951,1729861841853,-500.0,0.00013698,2]
[340806952,1729861841864,-910.68,0.00013698,2]
[340806953,1729861841873,-1557.28,0.00013698,2]
[340806954,1729861841883,-500.0,0.00013698,2]
[340806955,1729861841892,-500.0,0.00013698,2]
[340806956,1729861841902,-670.16,0.00013698,2]
[340806957,1729861841911,-519.37,0.00013698,2]
[340806958,1729861841922,-1000.89,0.00013698,2]
[340806959,1729861841932,-878.92,0.00013698,2]
[340806960,1729861841943,-3181.69,0.00013698,2]
[340806961,1729861841956,-1566.75,0.00013698,2]
[340806962,1729861841966,-500.0,0.00013698,2]
[340806963,1729861841975,-535.47,0.00013698,2]
[340806964,1729861841985,-610.05,0.00013698,2]
[340806965,1729861841996,-500.0,0.00013698,2]
[340806966,1729861842006,-829.43,0.00013698,2]
[340806967,1729861842016,-500.0,0.00013698,2]
[340806968,1729861842259,-548.02,0.00013698,2]
[340806969,1729861842269,-500.0,0.00013698,2]
[340806970,1729861842279,-500.0,0.00013698,2]
[340806971,1729861842288,-968.65,0.00013698,2]
[340806972,1729861842298,-836.98,0.00013698,2]
[340806973,1729861842307,-500.0,0.00013698,2]
[340806974,1729861842319,-770.16,0.00013698,2]
[340806975,1729861842328,-848.97,0.00013698,2]
[340806976,1729861842338,-500.0,0.00013698,2]
[340806977,1729861842347,-1097.23,0.00013698,2]
[340806978,1729861842358,-585.65,0.00013698,2]
[340806979,1729861842367,-397.13517096,0.00013698,2]
[340806980,1729861842377,-917.39,0.00013698,2]
[340806981,1729861842387,-500.0,0.00013698,2]
[340806982,1729861842396,-500.0,0.00013698,2]
[340806983,1729861842405,-669.44,0.00013698,2]
[340806984,1729861842415,-21158.21,0.00013698,2]
[340806985,1729861842424,-500.0,0.00013698,2]
[340806986,1729861842433,-500.0,0.00013698,2]
[340806987,1729861842442,-1085.49,0.00013698,2]
[340806988,1729861842453,-500.0,0.00013698,2]
[340806989,1729861842462,-797.93,0.00013698,2]
[340806990,1729861842471,-3681.66,0.00013698,2]
[340806991,1729861842481,-888.08,0.00013698,2]
[340806992,1729861842490,-500.0,0.00013698,2]
[340806993,1729861842500,-500.0,0.00013698,2]
[340806994,1729861842509,-500.0,0.00013698,2]
[340806995,1729861842519,-500.0,0.00013698,2]
[340806996,1729861842528,-500.0,0.00013698,2]
[340806997,1729861842539,-3414.25,0.00013698,2]
[340806998,1729861842549,-510.15,0.00013698,2]
[340806999,1729861842559,-3526.35,0.00013698,2]
[340807000,1729861842570,-986.55,0.00013698,2]
[340807001,1729861842580,-500.0,0.00013698,2]
[340807002,1729861842590,-500.0,0.00013698,2]
[340807003,1729861842600,-1562.38,0.00013698,2]
[340807004,1729861842610,-500.0,0.00013698,2]
[340807005,1729861842620,-1484.1,0.00013698,2]
[340807006,1729861842629,-648.53,0.00013698,2]
[340807007,1729861842640,-1002.34,0.00013698,2]
[340807008,1729861842649,-1498.76,0.00013698,2]
[340807009,1729861842659,-500.0,0.00013698,2]
[340807010,1729861842668,-1313.9,0.00013698,2]
[340807011,1729861842677,-933.72,0.00013698,2]
[340807012,1729861842687,-500.0,0.00013698,2]
[340807013,1729861842696,-500.0,0.00013698,2]
[340807014,1729861842706,-500.0,0.00013698,2]
[340807015,1729861842716,-500.0,0.00013698,2]
[340807016,1729861842726,-500.0,0.00013698,2]
[340807017,1729861842735,-813.38,0.00013698,2]
[340807018,1729861842745,-500.0,0.00013698,2]
[340807019,1729861842755,-500.0,0.00013698,2]
[340807020,1729861842766,-671.97,0.00013698,2]
[340807021,1729861842776,-500.0,0.00013698,2]
[340807022,1729861842787,-500.0,0.00013698,2]
[340807023,1729861842796,-500.0,0.00013698,2]
[340807024,1729861842806,-500.0,0.00013698,2]
[340807025,1729861842816,-500.0,0.00013698,2]
[340807026,1729861842826,-500.0,0.00013698,2]
[340807028,1729861842835,-500.0,0.00013698,2]
[340807029,1729861842845,-6747.09,0.00013698,2]
[340807030,1729861842854,-2271.04,0.00013698,2]
[340807031,1729861842864,-5553.78,0.00013698,2]
[340807032,1729861842874,-644.97,0.00013698,2]
[340807033,1729861842884,-500.0,0.00013698,2]
[340807034,1729861842893,-3134.57,0.00013698,2]
[340807035,1729861842901,-1576.32,0.00013698,2]
[340807036,1729861842911,-623.06,0.00013698,2]
[340807037,1729861842921,-1062.52,0.00013698,2]
[340807038,1729861842930,-1033.17,0.00013698,2]
[340807039,1729861842939,-2975.45,0.00013698,2]
[340807040,1729861842950,-858.89,0.00013698,2]
[340807041,1729861842959,-500.0,0.00013698,2]
[340807042,1729861842968,-500.0,0.00013698,2]
[340807043,1729861842977,-10977.84,0.00013698,2]
[340807044,1729861842986,-1224.17,0.00013698,2]
[340807045,1729861842995,-726.72,0.00013698,2]
[340807046,1729861843005,-526.58,0.00013698,2]
[340807047,1729861843014,-797.87,0.00013698,2]
[340807048,1729861843024,-597.1,0.00013698,2]
[340807049,1729861843035,-500.0,0.00013698,2]
[340807050,1729861843044,-4014.21,0.00013698,2]
[340807051,1729861843053,-500.0,0.00013698,2]
[340807052,1729861843063,-1003.51,0.00013698,2]
[340807053,1729861843073,-3378.86,0.00013698,2]
[340807054,1729861843083,-1320.09,0.00013698,2]
[340807055,1729861843092,-1413.75,0.00013698,2]
[340807056,1729861843103,-651.35,0.00013698,2]
[340807057,1729861843113,-1217.679311,0.00013699,2]
[340807058,1729861843122,-6105.337922,0.00013699,2]
[340807059,1729861843132,-151.0,0.00013699,2]
[340807060,1729861843141,-151.0,0.00013699,2]
[340807061,1729861843151,-151.0,0.00013699,2]
[340807062,1729861843161,-174.035703,0.00013699,2]
[340807063,1729861843170,-174.035703,0.00013699,2]
[340807064,1729861843180,-188.261166,0.00013699,2]
[340807065,1729861843190,-197.514711,0.00013699,2]
[340807066,1729861843199,-197.514711,0.00013699,2]
[340807067,1729861843209,-151.0,0.00013699,2]
[340807068,1729861843220,-1202.103708,0.00013699,2]
[340807069,1729861843230,-151.0,0.00013699,2]
[340807070,1729861843240,-220.35049,0.00013699,2]
[340807071,1729861843250,-220.35049,0.00013699,2]
[340807072,1729861843261,-151.0,0.00013699,2]
[340807073,1729861843270,-151.0,0.00013699,2]
[340807074,1729861843280,-352.013793,0.00013699,2]
[340807075,1729861843290,-352.013793,0.00013699,2]
[340807076,1729861843300,-151.0,0.00013699,2]
[340807077,1729861843309,-151.0,0.00013699,2]
[340807078,1729861843319,-150.0,0.00013726,2]
[340807079,1729861843329,-3436.94,0.0001382,2]
[340807080,1729861843339,-153.0,0.000139,2]
[340807081,1729861843349,-150.0,0.000139,2]
[340807082,1729861843359,-169.777553,0.00013906,2]
[340807083,1729861843369,-151.0,0.00013933,2]
[340807084,1729861843378,-151.0,0.00013933,2]
[340807085,1729861843388,-151.0,0.00013933,2]
[340807086,1729861843398,-151.0,0.00013933,2]
[340807087,1729861843407,-151.0,0.00013942,2]
[340807088,1729861843417,-151.0,0.00013942,2]
[340807089,1729861843427,-151.0,0.00013942,2]
[340807090,1729861843437,-174.035703,0.00013942,2]
[340807091,1729861843447,-174.035703,0.00013942,2]
[340807092,1729861843457,-197.514711,0.00013942,2]
[340807093,1729861843466,-197.514711,0.00013942,2]
[340807094,1729861843476,-151.0,0.00013942,2]
[340807095,1729861843486,-1202.103708,0.00013942,2]
[340807096,1729861843496,-251.085127,0.00013942,2]
[340807097,1729861843506,-151.0,0.00013942,2]
[340807099,1729861843515,-220.35049,0.00013942,2]
[340807101,1729861843525,-220.35049,0.00013942,2]
[340807103,1729861843534,-151.0,0.00013942,2]
[340807105,1729861843543,-151.0,0.00013942,2]
[340807107,1729861843553,-352.013793,0.00013942,2]
[340807108,1729861843562,-352.013793,0.00013942,2]
[340807110,1729861843572,-152.67342,0.00013942,2]
[340807112,1729861843582,-152.67342,0.00013942,2]
[340807114,1729861843592,-151.0,0.00013942,2]
[340807116,1729861843602,-151.0,0.00013942,2]
[340807117,1729861843611,-178.751232,0.00013942,2]
[340807118,1729861843620,-178.751232,0.00013942,2]
[340807119,1729861843631,-151.0,0.00013942,2]
[340807120,1729861843641,-151.0,0.00013942,2]
[340807121,1729861843652,-262.341517,0.00013942,2]
[340807122,1729861843662,-262.341517,0.00013942,2]
[340807123,1729861843672,-227.085088,0.00013942,2]
[340807124,1729861843681,-227.085088,0.00013942,2]
[340807125,1729861843691,-151.0,0.00013942,2]
[340807126,1729861843702,-151.0,0.00013942,2]
[340807127,1729861843712,-151.0,0.00013942,2]
[340807128,1729861843722,-151.0,0.00013942,2]
[340807129,1729861843733,-254.264818,0.00013942,2]
[340807130,1729861843742,-151.0,0.00013942,2]
[340807131,1729861843752,-151.0,0.00013942,2]
[340807132,1729861843762,-151.0,0.00013942,2]
[340807133,1729861843772,-151.0,0.00013942,2]
[340807134,1729861843782,-151.0,0.00013942,2]
[340807135,1729861843793,-605.560689,0.00013942,2]
[340807136,1729861843802,-605.560689,0.00013942,2]
[340807137,1729861843812,-1219.310042,0.00013942,2]
[340807138,1729861843822,-1219.310042,0.00013942,2]
[340807139,1729861843832,-151.0,0.00013942,2]
[340807140,1729861843841,-151.0,0.00013942,2]
[340807141,1729861843851,-223.011434,0.00013942,2]
[340807142,1729861843860,-223.011434,0.00013942,2]
[340807143,1729861843869,-6934.56844359,0.00013952,2]
[340807144,1729861843886,-365.35966481,0.00013952,2]
[340807145,1729861843904,-23052.6287898,0.00013952,2]
[340807146,1729861843913,-29535.449254,0.00013952,2]
[340807147,1729861843923,-154.162139,0.00013952,2]
[340807148,1729861843935,-151.0,0.00013952,2]
[340807149,1729861843947,-151.0,0.00013952,2]
[340807150,1729861843961,-151.0,0.00013952,2]
[340807151,1729861843970,-150.01,0.00013961,2]
[340807152,1729861843980,-3334.39813119,0.00013961,2]
[340807153,1729861843992,-151.0,0.00013962,2]
[340807154,1729861844002,-151.0,0.00013962,2]
[340807155,1729861844014,-151.0,0.00013962,2]
[340807156,1729861844027,-151.0,0.00013962,2]
[340807157,1729861844037,-151.0,0.00013962,2]
[340807158,1729861844046,-151.0,0.00013962,2]
[340807159,1729861844057,-151.0,0.00013962,2]
[340807160,1729861844066,-151.0,0.00013962,2]
[340807161,1729861844076,-151.0,0.00013962,2]
[340807162,1729861844085,-151.0,0.00013962,2]
[340807163,1729861844095,-174.035703,0.00013962,2]
[340807164,1729861844104,-174.035703,0.00013962,2]
[340807165,1729861844114,-197.514711,0.00013962,2]
[340807166,1729861844123,-197.514711,0.00013962,2]
[340807167,1729861844132,-151.0,0.00013962,2]
[340807168,1729861844142,-158.15883,0.00013962,2]
[340807169,1729861844151,-1202.103708,0.00013962,2]
[340807170,1729861844160,-251.085127,0.00013962,2]
[340807171,1729861844170,-151.0,0.00013962,2]
[340807172,1729861844180,-220.35049,0.00013962,2]
[340807173,1729861844190,-220.35049,0.00013962,2]
[340807174,1729861844199,-151.0,0.00013962,2]
[340807175,1729861844209,-151.0,0.00013962,2]
[340807176,1729861844219,-503.008388,0.00013962,2]
[340807177,1729861844229,-352.013793,0.00013962,2]
[340807178,1729861844239,-352.013793,0.00013962,2]
[340807179,1729861844249,-295.120054,0.00013962,2]
[340807180,1729861844259,-295.120054,0.00013962,2]
[340807181,1729861844269,-453.982432,0.00013962,2]
[340807182,1729861844279,-453.982432,0.00013962,2]
[340807183,1729861844289,-715.225027,0.00013962,2]
[340807184,1729861844299,-715.225027,0.00013962,2]
[340807185,1729861844308,-151.0,0.00013962,2]
[340807186,1729861844318,-151.0,0.00013962,2]
[340807187,1729861844329,-158.046537,0.00013962,2]
[340807188,1729861844340,-247.999507,0.00013962,2]
[340807189,1729861844349,-247.999507,0.00013962,2]
[340807190,1729861844359,-151.0,0.00013962,2]
[340807191,1729861844373,-1116.443501,0.00013962,2]
[340807192,1729861844386,-1116.443501,0.00013962,2]
[340807193,1729861844400,-151.0,0.00013962,2]
[340807194,1729861844411,-1219.310042,0.00013962,2]
[340807195,1729861844424,-1219.310042,0.00013962,2]
[340807196,1729861844436,-1219.310042,0.00013962,2]
[340807197,1729861844447,-1219.310042,0.00013962,2]
[340807198,1729861844457,-151.0,0.00013962,2]
[340807199,1729861844467,-151.0,0.00013962,2]
[340807200,1729861844480,-151.0,0.00013962,2]
[340807201,1729861844491,-223.011434,0.00013962,2]
[340807202,1729861844503,-223.011434,0.00013962,2]
[340807203,1729861844514,-223.011434,0.00013962,2]
[340807204,1729861844526,-223.011434,0.00013962,2]
[340807205,1729861844539,-91057.6706946,0.00013962,2]
[340807206,1729861844551,-21610.07956762,0.00013962,2]
[340807207,1729861844830,-500.0,0.00013698,2]
[340807208,1729861844841,-206.48449629,0.00013961,2]
[340807209,1729861844853,-6357.4556665,0.00013962,2]
[340807210,1729861844869,-676.10054088,0.00013962,2]
[340807211,1729861844885,-89498.161241,0.00013962,2]
[340807212,1729861844899,-549.65,0.00013972,2]
[340807213,1729861844912,-387.24455765,0.00013972,2]
[340807214,1729861844924,-500.0,0.00013972,2]
[340807215,1729861844935,-500.0,0.00013972,2]
[340807216,1729861844946,-151.0,0.00013972,2]
[340807217,1729861844958,-152.020855,0.00013972,2]
[340807218,1729861844971,-500.0,0.00013972,2]
[340807219,1729861844981,-602.42,0.00013972,2]
[340807220,1729861844993,-523.4,0.00013972,2]
[340807221,1729861845006,-500.0,0.00013972,2]
[340807222,1729861845018,-530.27,0.00013972,2]
[340807223,1729861845030,-500.0,0.00013972,2]
[340807224,1729861845046,-992.56,0.00013972,2]
[340807225,1729861845059,-500.0,0.00013972,2]
[340807226,1729861845071,-500.0,0.00013972,2]
[340807227,1729861845083,-500.0,0.00013972,2]
[340807228,1729861845096,-500.0,0.00013972,2]
[340807229,1729861845109,-453.77841398,0.00013972,2]
[340807230,1729861845121,-522.86,0.00013972,2]
[340807231,1729861845133,-500.0,0.00013972,2]
[340807232,1729861845146,-500.0,0.00013972,2]
[340807233,1729861845157,-151.0,0.00013972,2]
[340807234,1729861845170,-151.0,0.00013972,2]
[340807235,1729861845180,-500.0,0.00013972,2]
[340807236,1729861845190,-1167.2,0.00013972,2]
[340807237,1729861845201,-151.0,0.00013972,2]
[340807238,1729861845212,-151.0,0.00013972,2]
[340807239,1729861845223,-151.0,0.00013972,2]
[340807240,1729861845238,-151.0,0.00013972,2]
[340807241,1729861845250,-500.0,0.00013972,2]
[340807242,1729861845262,-500.0,0.00013972,2]
[340807243,1729861845273,-500.0,0.00013972,2]
[340807244,1729861845285,-521.24,0.00013972,2]
[340807245,1729861845296,-749.68,0.00013972,2]
[340807246,1729861845307,-500.0,0.00013972,2]
[340807247,1729861845318,-1120.16,0.00013972,2]
[340807248,1729861845330,-500.0,0.00013972,2]
[340807249,1729861845341,-500.0,0.00013972,2]
[340807250,1729861845353,-500.0,0.00013972,2]
[340807251,1729861845364,-500.0,0.00013972,2]
[340807252,1729861845376,-500.0,0.00013972,2]
[340807253,1729861845387,-500.0,0.00013972,2]
[340807254,1729861845398,-151.0,0.00013972,2]
[340807255,1729861845410,-1755.3,0.00013972,2]
[340807256,1729861845421,-500.0,0.00013972,2]
[340807257,1729861845432,-500.0,0.00013972,2]
[340807258,1729861845442,-1055.72,0.00013972,2]
[340807259,1729861845454,-510.66,0.00013972,2]
[340807260,1729861845466,-500.0,0.00013972,2]
[340807261,1729861845477,-545.75,0.00013972,2]
[340807262,1729861845488,-564.0,0.00013972,2]
[340807263,1729861845499,-151.0,0.00013972,2]
[340807264,1729861845512,-151.0,0.00013972,2]
[340807265,1729861845523,-151.0,0.00013972,2]
[340807266,1729861845536,-151.0,0.00013972,2]
[340807267,1729861845553,-151.0,0.00013972,2]
[340807268,1729861845565,-151.0,0.00013972,2]
[340807269,1729861845576,-769.08,0.00013972,2]
[340807270,1729861845587,-593.97,0.00013972,2]
[340807271,1729861845598,-899.85,0.00013972,2]
[340807272,1729861845610,-151.0,0.00013972,2]
[340807273,1729861845621,-151.0,0.00013972,2]
[340807274,1729861845631,-151.0,0.00013972,2]
[340807275,1729861845643,-151.0,0.00013972,2]
[340807276,1729861845655,-500.0,0.00013972,2]
[340807277,1729861845666,-830.01,0.00013972,2]
[340807278,1729861845679,-634.43,0.00013972,2]
[340807279,1729861845691,-500.0,0.00013972,2]
[340807280,1729861845703,-500.0,0.00013972,2]
[340807281,1729861845716,-174.035703,0.00013972,2]
[340807282,1729861845728,-174.035703,0.00013972,2]
[340807283,1729861845739,-703.62,0.00013972,2]
[340807284,1729861845750,-1010.29,0.00013972,2]
[340807285,1729861845761,-558.81,0.00013972,2]
[340807286,1729861845771,-174.035703,0.00013972,2]
[340807287,1729861845783,-174.035703,0.00013972,2]
[340807288,1729861845796,-1653.61,0.00013972,2]
[340807289,1729861845808,-1995.07,0.00013972,2]
[340807290,1729861845820,-500.0,0.00013972,2]
[340807291,1729861845831,-585.33,0.00013972,2]
[340807292,1729861845842,-1808.93,0.00013972,2]
[340807293,1729861845855,-1025.73,0.00013972,2]
[340807294,1729861845865,-573.81,0.00013972,2]
[340807297,1729861845876,-789.26,0.00013972,2]
[340807298,1729861845886,-197.514711,0.00013972,2]
[340807299,1729861845897,-197.514711,0.00013972,2]
[340807300,1729861845907,-197.514711,0.00013972,2]
[340807301,1729861845917,-197.514711,0.00013972,2]
[340807302,1729861845928,-500.0,0.00013972,2]
[340807303,1729861845939,-289.972794,0.00013972,2]
[340807304,1729861845949,-500.0,0.00013972,2]
[340807305,1729861845962,-500.0,0.00013972,2]
[340807306,1729861845976,-733.87,0.00013972,2]
[340807307,1729861845987,-756.37,0.00013972,2]
[340807308,1729861845999,-955.98,0.00013972,2]
[340807309,1729861846011,-969.61,0.00013972,2]
[340807310,1729861846021,-500.0,0.00013972,2]
[340807312,1729861846032,-500.0,0.00013972,2]
[340807314,1729861846044,-500.0,0.00013972,2]
[340807315,1729861846055,-500.0,0.00013972,2]
[340807316,1729861846065,-421.187957,0.00013972,2]
[340807317,1729861846075,-1202.103708,0.00013972,2]
[340807318,1729861846086,-513.44,0.00013972,2]
[340807320,1729861846096,-158.15883,0.00013972,2]